fUST/lending_fUST_20260621
["ID","MTS","AMOUNT","RATE_DAILY","PERIOD"]
[425843712,1781977832000,-90.87805734,0.0001427,2]
[425843711,1781977832000,-300.0,0.0001427,2]
[425843710,1781977832000,-300.0,0.0001427,2]
[425843734,1781977840000,-600.0,0.00014554,2]
[425843733,1781977840000,-209.12194266,0.0001427,2]
[425843737,1781977840000,-184.43855652,0.000155,2]
[425843739,1781977840000,-160.0,0.000157,2]
[425843735,1781977840000,-426.80597391,0.00014728,2]
[425843736,1781977840000,-617.67703262,0.000155,2]
[425843738,1781977840000,-417.15472785,0.000157,2]
[425843742,1781977840000,-160.0,0.000157,2]
[425843744,1781977840000,-617.67703262,0.000158,2]
[425843743,1781977840000,-617.67703262,0.000157,2]
[425843745,1781977840000,-617.67703262,0.00016,2]
[425843747,1781977840000,-617.67703262,0.000162,2]
[425843746,1781977840000,-720.0,0.0001601,2]
[425843748,1781977840000,-1027.79681763,0.00016338,2]
[425843749,1781977840000,-4.93961288,0.00016438,2]
[425843741,1781977840000,-160.0,0.000157,2]
[425843794,1781977846000,-500.0,0.00016438,2]
[425843801,1781977846000,-186.0,0.00016568,2]
[425843795,1781977846000,-500.0,0.00016438,2]
[425843799,1781977846000,-1841.0,0.00016568,2]
[425843796,1781977846000,-500.0,0.00016438,2]
[425843797,1781977846000,-182.574099,0.00016463,2]
[425843791,1781977846000,-1180.76378457,0.00016438,2]
[425843800,1781977846000,-958.0,0.00016568,2]
[425843814,1781977846000,-500.0,0.00016712,2]
[425843815,1781977846000,-500.0,0.00016712,2]
[425843816,1781977846000,-500.0,0.00016712,2]
[425843805,1781977846000,-726.34,0.00016712,2]
[425843806,1781977846000,-500.0,0.00016712,2]
[425843808,1781977846000,-500.0,0.00016712,2]
[425843803,1781977846000,-500.0,0.00016712,2]
[425843813,1781977846000,-500.0,0.00016712,2]
[425843802,1781977846000,-334.9050609,0.00016606,2]
[425843804,1781977846000,-500.0,0.00016712,2]
[425843810,1781977846000,-500.0,0.00016712,2]
[425843776,1781977846000,-500.0,0.00016438,2]
[425843793,1781977846000,-500.0,0.00016438,2]
[425843811,1781977846000,-500.0,0.00016712,2]
[425843775,1781977846000,-495.06038712,0.00016438,2]
[425843777,1781977846000,-726.34,0.00016438,2]
[425843785,1781977846000,-500.0,0.00016438,2]
[425843787,1781977846000,-500.0,0.00016438,2]
[425843780,1781977846000,-500.0,0.00016438,2]
[425843782,1781977846000,-500.0,0.00016438,2]
[425843789,1781977846000,-500.0,0.00016438,2]
[425843788,1781977846000,-500.0,0.00016438,2]
[425843778,1781977846000,-500.0,0.00016438,2]
[425843779,1781977846000,-500.0,0.00016438,2]
[425843784,1781977846000,-500.0,0.00016438,2]
[425843781,1781977846000,-500.0,0.00016438,2]
[425843783,1781977846000,-500.0,0.00016438,2]
[425843786,1781977846000,-500.0,0.00016438,2]
[425843790,1781977846000,-3068.36621543,0.00016438,2]
[425843792,1781977846000,-500.0,0.00016438,2]
[425843798,1781977846000,-7697.17686434,0.00016468,2]
[425843812,1781977846000,-500.0,0.00016712,2]
[425843829,1781977846000,-500.0,0.00016986,2]
[425843809,1781977846000,-500.0,0.00016712,2]
[425843840,1781977846000,-500.0,0.00016986,2]
[425843842,1781977846000,-463.79962751,0.00016986,2]
[425843841,1781977846000,-500.0,0.00016986,2]
[425843849,1781977846000,-500.0,0.00016986,2]
[425843848,1781977846000,-500.0,0.00016986,2]
[425843846,1781977846000,-500.0,0.00016986,2]
[425843845,1781977846000,-4249.13,0.00016986,2]
[425843843,1781977846000,-500.0,0.00016986,2]
[425843847,1781977846000,-500.0,0.00016986,2]
[425843853,1781977846000,-500.0,0.0001726,2]
[425843851,1781977846000,-182.574099,0.00017156,2]
[425843852,1781977846000,-1000.0,0.00017259,2]
[425843856,1781977846000,-500.0,0.0001726,2]
[425843850,1781977846000,-1027.79681757,0.00017118,2]
[425843855,1781977846000,-500.0,0.0001726,2]
[425843854,1781977846000,-726.34,0.0001726,2]
[425843807,1781977846000,-500.0,0.00016712,2]
[425843838,1781977846000,-500.0,0.00016986,2]
[425843839,1781977846000,-500.0,0.00016986,2]
[425843844,1781977846000,-500.0,0.00016986,2]
[425843837,1781977846000,-500.0,0.00016986,2]
[425843817,1781977846000,-500.0,0.00016712,2]
[425843835,1781977846000,-500.0,0.00016986,2]
[425843821,1781977846000,-500.0,0.00016712,2]
[425843823,1781977846000,-158.42640777,0.00016885,2]
[425843822,1781977846000,-500.0,0.00016712,2]
[425843819,1781977846000,-500.0,0.00016712,2]
[425843818,1781977846000,-4249.13,0.00016712,2]
[425843820,1781977846000,-500.0,0.00016712,2]
[425843826,1781977846000,-1000.0,0.00016985,2]
[425843825,1781977846000,-1000.0,0.00016985,2]
[425843824,1781977846000,-1000.0,0.00016985,2]
[425843830,1781977846000,-175.357,0.00016986,2]
[425843831,1781977846000,-190.22726229,0.00016986,2]
[425843828,1781977846000,-1000.0,0.00016985,2]
[425843827,1781977846000,-1000.0,0.00016985,2]
[425843836,1781977846000,-500.0,0.00016986,2]
[425843832,1781977846000,-726.34,0.00016986,2]
[425843834,1781977846000,-500.0,0.00016986,2]
[425843833,1781977846000,-500.0,0.00016986,2]
[425843891,1781977847000,-864.0,0.00017611,2]
[425843889,1781977847000,-500.0,0.00017534,2]
[425843897,1781977847000,-500.0,0.00017808,2]
[425843884,1781977847000,-500.0,0.00017534,2]
[425843887,1781977847000,-500.0,0.00017534,2]
[425843881,1781977847000,-500.0,0.00017534,2]
[425843886,1781977847000,-4249.13,0.00017534,2]
[425843893,1781977847000,-1000.0,0.00017808,2]
[425843883,1781977847000,-500.0,0.00017534,2]
[425843895,1781977847000,-500.0,0.00017808,2]
[425843902,1781977847000,-500.0,0.00017808,2]
[425843899,1781977847000,-500.0,0.00017808,2]
[425843894,1781977847000,-1000.0,0.00017808,2]
[425843890,1781977847000,-500.0,0.00017534,2]
[425843892,1781977847000,-1000.0,0.00017808,2]
[425843896,1781977847000,-726.34,0.00017808,2]
[425843898,1781977847000,-500.0,0.00017808,2]
[425843900,1781977847000,-500.0,0.00017808,2]
[425843903,1781977847000,-500.0,0.00017808,2]
[425843901,1781977847000,-500.0,0.00017808,2]
[425843878,1781977847000,-500.0,0.00017534,2]
[425843888,1781977847000,-500.0,0.00017534,2]
[425843880,1781977847000,-500.0,0.00017534,2]
[425843857,1781977847000,-500.0,0.0001726,2]
[425843877,1781977847000,-500.0,0.00017534,2]
[425843904,1781977847000,-500.0,0.00017808,2]
[425843861,1781977847000,-500.0,0.0001726,2]
[425843860,1781977847000,-500.0,0.0001726,2]
[425843859,1781977847000,-500.0,0.0001726,2]
[425843858,1781977847000,-500.0,0.0001726,2]
[425843868,1781977847000,-500.0,0.0001726,2]
[425843873,1781977847000,-500.0,0.00017534,2]
[425843865,1781977847000,-500.0,0.0001726,2]
[425843867,1781977847000,-500.0,0.0001726,2]
[425843870,1781977847000,-500.0,0.0001726,2]
[425843875,1781977847000,-500.0,0.00017534,2]
[425843872,1781977847000,-1000.0,0.00017533,2]
[425843866,1781977847000,-4249.13,0.0001726,2]
[425843863,1781977847000,-500.0,0.0001726,2]
[425843864,1781977847000,-500.0,0.0001726,2]
[425843871,1781977847000,-155.21875911,0.0001752,2]
[425843869,1781977847000,-500.0,0.0001726,2]
[425843874,1781977847000,-726.34,0.00017534,2]
[425843876,1781977847000,-500.0,0.00017534,2]
[425843882,1781977847000,-247.74475295,0.00017534,2]
[425843879,1781977847000,-500.0,0.00017534,2]
[425843885,1781977847000,-500.0,0.00017534,2]
[425843862,1781977847000,-500.0,0.0001726,2]
[425843906,1781977847000,-500.0,0.00017808,2]
[425843917,1781977847000,-768.54490201,0.00017957,2]
[425843905,1781977847000,-500.0,0.00017808,2]
[425843930,1781977847000,-3892.78048857,0.00017975,2]
[425843938,1781977847000,-500.0,0.00018082,2]
[425843936,1781977847000,-500.0,0.00018082,2]
[425843937,1781977847000,-500.0,0.00018082,2]
[425843927,1781977847000,-1272.38438065,0.00017975,2]
[425843940,1781977847000,-500.0,0.00018082,2]
[425843939,1781977847000,-282.20036448,0.00018082,2]
[425843941,1781977847000,-500.0,0.00018082,2]
[425843950,1781977847000,-500.0,0.00018082,2]
[425843951,1781977847000,-175.12445426,0.000182,2]
[425843931,1781977847000,-175.12445426,0.00018,2]
[425843942,1781977847000,-500.0,0.00018082,2]
[425843945,1781977847000,-500.0,0.00018082,2]
[425843946,1781977847000,-4249.13,0.00018082,2]
[425843949,1781977847000,-500.0,0.00018082,2]
[425843948,1781977847000,-500.0,0.00018082,2]
[425843947,1781977847000,-500.0,0.00018082,2]
[425843943,1781977847000,-500.0,0.00018082,2]
[425843952,1781977847000,-326.9485734,0.00018233,2]
[425843955,1781977847000,-52534.16954309,0.000183,2]
[425843954,1781977847000,-774.62492515,0.00018295,2]
[425843911,1781977847000,-500.0,0.00017808,2]
[425843944,1781977847000,-500.0,0.00018082,2]
[425843933,1781977847000,-1000.0,0.00018081,2]
[425843953,1781977847000,-210.0,0.00018247,2]
[425843935,1781977847000,-726.34,0.00018082,2]
[425843907,1781977847000,-4249.13,0.00017808,2]
[425843932,1781977847000,-4196.69076013,0.00018,10]
[425843912,1781977847000,-182.574099,0.00017849,2]
[425843910,1781977847000,-500.0,0.00017808,2]
[425843909,1781977847000,-500.0,0.00017808,2]
[425843908,1781977847000,-500.0,0.00017808,2]
[425843914,1781977847000,-1000.0,0.00017933,2]
[425843925,1781977847000,-397.62011895,0.00017975,2]
[425843916,1781977847000,-426.96939,0.00017957,2]
[425843924,1781977847000,-159.54,0.00017969,2]
[425843956,1781977847000,-578.0,0.000183,2]
[425843913,1781977847000,-1027.79681757,0.00017899,2]
[425843919,1781977847000,-2134.84695002,0.00017957,2]
[425843923,1781977847000,-4180.11572201,0.00017957,2]
[425843920,1781977847000,-3074.17960802,0.00017957,2]
[425843921,1781977847000,-242.07028911,0.00017957,2]
[425843918,1781977847000,-1366.30204801,0.00017957,2]
[425843922,1781977847000,-435.7265204,0.00017957,2]
[425843926,1781977847000,-715.71621411,0.00017975,2]
[425843928,1781977847000,-1988.10059476,0.00017975,2]
[425843929,1781977847000,-2862.86485646,0.00017975,2]
[425843934,1781977847000,-500.0,0.00018082,2]
[425843915,1781977847000,-663.99057964,0.00017934,2]
[425843959,1781977880000,883.95341153,0.00022999,120]
[425843979,1781978261000,2000.0,7.6e-05,2]
[425844093,1781979031000,-893.90684644,0.00010294,2]
[425844095,1781979031000,-5000.0,0.00010398,2]
[425844097,1781979031000,-151.0,0.000115,2]
[425844096,1781979031000,-151.0,0.00011155,2]
[425844094,1781979031000,-3030.73666179,0.00010294,2]
[425844100,1781979032000,-433.45811007,0.00013,2]
[425844099,1781979032000,-667.22499478,0.00013,2]
[425844098,1781979032000,-1056.90563718,0.00012,2]
[425844138,1781979038000,-500.0,0.00016437,2]
[425844141,1781979038000,-529.33098726,0.00016437,2]
[425844139,1781979038000,-500.0,0.00016437,2]
[425844143,1781979038000,-500.0,0.00016437,2]
[425844146,1781979038000,-500.0,0.00016438,2]
[425844142,1781979038000,-500.0,0.00016437,2]
[425844140,1781979038000,-500.0,0.00016437,2]
[425844144,1781979038000,-500.0,0.00016437,2]
[425844151,1781979038000,-500.0,0.00016438,2]
[425844150,1781979038000,-500.0,0.00016438,2]
[425844152,1781979038000,-500.0,0.00016438,2]
[425844153,1781979038000,-500.0,0.00016438,2]
[425844159,1781979038000,-500.0,0.00016438,2]
[425844155,1781979038000,-500.0,0.00016438,2]
[425844158,1781979038000,-3030.63,0.00016438,2]
[425844136,1781979038000,-500.0,0.00016437,2]
[425844145,1781979038000,-500.0,0.00016438,2]
[425844148,1781979038000,-500.0,0.00016438,2]
[425844122,1781979038000,-3204.02668147,0.00013,2]
[425844147,1781979038000,-500.0,0.00016438,2]
[425844157,1781979038000,-500.0,0.00016438,2]
[425844121,1781979038000,-4067.71820131,0.00013,2]
[425844123,1781979038000,-183.939474,0.00015068,2]
[425844125,1781979038000,-275.95697029,0.000155,2]
[425844134,1781979038000,-387.9184616,0.00016,2]
[425844129,1781979038000,-182.574099,0.00015564,2]
[425844124,1781979038000,-387.9184616,0.000155,2]
[425844137,1781979038000,-500.0,0.00016437,2]
[425844127,1781979038000,-417.15472785,0.00015535,2]
[425844126,1781979038000,-160.0,0.00015535,2]
[425844128,1781979038000,-160.0,0.00015535,2]
[425844135,1781979038000,-387.9184616,0.000162,2]
[425844133,1781979038000,-387.9184616,0.000158,2]
[425844132,1781979038000,-387.9184616,0.000157,2]
[425844131,1781979038000,-160.0,0.000157,2]
[425844149,1781979038000,-514.49,0.00016438,2]
[425844130,1781979038000,-160.0,0.000157,2]
[425844160,1781979038000,-1000.0,0.00016467,2]
[425844170,1781979038000,-500.0,0.00016712,2]
[425844156,1781979038000,-500.0,0.00016438,2]
[425844184,1781979038000,-445.0,0.00016754,2]
[425844181,1781979038000,-3030.63,0.00016712,2]
[425844180,1781979038000,-500.0,0.00016712,2]
[425844186,1781979038000,-657.695,0.000169,2]
[425844196,1781979038000,-500.0,0.00016986,2]
[425844197,1781979038000,-500.0,0.00016986,2]
[425844187,1781979038000,-175.357,0.000169,2]
[425844182,1781979038000,-500.0,0.00016712,2]
[425844185,1781979038000,-186.0,0.00016754,2]
[425844189,1781979038000,-500.0,0.00016986,2]
[425844190,1781979038000,-500.0,0.00016986,2]
[425844194,1781979038000,-500.0,0.00016986,2]
[425844192,1781979038000,-514.49,0.00016986,2]
[425844195,1781979038000,-500.0,0.00016986,2]
[425844154,1781979038000,-500.0,0.00016438,2]
[425844193,1781979038000,-500.0,0.00016986,2]
[425844188,1781979038000,-500.0,0.00016984,2]
[425844183,1781979038000,-1418.0,0.00016754,2]
[425844191,1781979038000,-239.85157814,0.00016986,2]
[425844178,1781979038000,-500.0,0.00016712,2]
[425844179,1781979038000,-500.0,0.00016712,2]
[425844172,1781979038000,-514.49,0.00016712,2]
[425844162,1781979038000,-1000.0,0.00016467,2]
[425844165,1781979038000,-1000.0,0.00016467,2]
[425844166,1781979038000,-172.63048694,0.00016612,2]
[425844168,1781979038000,-418.68,0.00016712,2]
[425844161,1781979038000,-1000.0,0.00016467,2]
[425844163,1781979038000,-1000.0,0.00016467,2]
[425844173,1781979038000,-500.0,0.00016712,2]
[425844164,1781979038000,-1000.0,0.00016467,2]
[425844169,1781979038000,-500.0,0.00016712,2]
[425844171,1781979038000,-500.0,0.00016712,2]
[425844174,1781979038000,-500.0,0.00016712,2]
[425844176,1781979038000,-500.0,0.00016712,2]
[425844177,1781979038000,-500.0,0.00016712,2]
[425844167,1781979038000,-1000.0,0.00016711,2]
[425844175,1781979038000,-500.0,0.00016712,2]
[425844219,1781979039000,-2545.55920198,0.0001726,2]
[425844217,1781979039000,-500.0,0.0001726,2]
[425844220,1781979039000,-485.07079802,0.0001726,2]
[425844221,1781979039000,-500.0,0.0001726,2]
[425844218,1781979039000,-500.0,0.0001726,2]
[425844225,1781979039000,-514.49,0.00017534,2]
[425844226,1781979039000,-500.0,0.00017534,2]
[425844227,1781979039000,-500.0,0.00017534,2]
[425844223,1781979039000,-500.0,0.00017534,2]
[425844234,1781979039000,-706.3907384,0.00017534,2]
[425844224,1781979039000,-500.0,0.00017534,2]
[425844232,1781979039000,-412.03821541,0.00017534,2]
[425844216,1781979039000,-500.0,0.0001726,2]
[425844235,1781979039000,-500.0,0.00017534,2]
[425844229,1781979039000,-500.0,0.00017534,2]
[425844215,1781979039000,-500.0,0.0001726,2]
[425844201,1781979039000,-3030.63,0.00016986,2]
[425844222,1781979039000,-500.0,0.00017532,2]
[425844231,1781979039000,-500.0,0.00017534,2]
[425844198,1781979039000,-500.0,0.00016986,2]
[425844199,1781979039000,-500.0,0.00016986,2]
[425844200,1781979039000,-500.0,0.00016986,2]
[425844204,1781979039000,-182.574099,0.00017202,2]
[425844203,1781979039000,-9941.56858342,0.00017,2]
[425844205,1781979039000,-500.0,0.00017258,2]
[425844206,1781979039000,-1000.0,0.00017259,2]
[425844202,1781979039000,-500.0,0.00016986,2]
[425844207,1781979039000,-290.82635398,0.00017259,2]
[425844209,1781979039000,-500.0,0.0001726,2]
[425844208,1781979039000,-500.0,0.0001726,2]
[425844212,1781979039000,-500.0,0.0001726,2]
[425844213,1781979039000,-500.0,0.0001726,2]
[425844211,1781979039000,-481.49336572,0.0001726,2]
[425844214,1781979039000,-500.0,0.0001726,2]
[425844228,1781979039000,-588.55069243,0.00017534,2]
[425844210,1781979039000,-514.49,0.0001726,2]
[425844233,1781979039000,-2324.2392616,0.00017534,2]
[425844249,1781979039000,-186.41407982,0.00017957,2]
[425844252,1781979039000,-1209.14109411,0.00017957,2]
[425844257,1781979039000,-500.0,0.00018082,2]
[425844250,1781979039000,-335.54534368,0.00017957,2]
[425844260,1781979039000,-257.36316048,0.00018082,2]
[425844258,1781979039000,-575.21,0.00018082,2]
[425844262,1781979039000,-500.0,0.00018082,2]
[425844261,1781979039000,-500.0,0.00018082,2]
[425844263,1781979039000,-500.0,0.00018082,2]
[425844265,1781979039000,-3030.63,0.00018082,2]
[425844266,1781979039000,-931.1383287,0.00018266,2]
[425844267,1781979039000,-443.13372389,0.00018266,2]
[425844268,1781979039000,-8899.02388882,0.000183,2]
[425844264,1781979039000,-500.0,0.00018082,2]
[425844269,1781979039000,-2698.64026726,0.000183,2]
[425844253,1781979039000,-155.0,0.00017994,2]
[425844259,1781979039000,-514.49,0.00018082,2]
[425844230,1781979039000,-500.0,0.00017534,2]
[425844256,1781979039000,-500.0,0.0001808,2]
[425844237,1781979039000,-1000.0,0.00017807,2]
[425844239,1781979039000,-500.0,0.00017808,2]
[425844241,1781979039000,-500.0,0.00017808,2]
[425844240,1781979039000,-514.49,0.00017808,2]
[425844236,1781979039000,-500.0,0.00017806,2]
[425844243,1781979039000,-500.0,0.00017808,2]
[425844248,1781979039000,-497.99293473,0.00017934,2]
[425844247,1781979039000,-410.06553372,0.00017808,2]
[425844242,1781979039000,-500.0,0.00017808,2]
[425844244,1781979039000,-500.0,0.00017808,2]
[425844245,1781979039000,-500.0,0.00017808,2]
[425844246,1781979039000,-3030.63,0.00017808,2]
[425844251,1781979039000,-596.52505542,0.00017957,2]
[425844255,1781979039000,-31.95970347,0.00018,2]
[425844238,1781979039000,-500.0,0.00017808,2]
[425844254,1781979039000,-143.16475078,0.00018,2]
[425844319,1781979040000,-328.89,0.000183,2]
[425844317,1781979040000,-2102.96,0.000183,2]
[425844330,1781979040000,-1288.72719031,0.000183,2]
[425844328,1781979040000,-2330.97593412,0.000183,2]
[425844325,1781979040000,-2309.89994097,0.000183,2]
[425844408,1781979046000,-328.805,0.000183,2]
[425844407,1781979046000,-2579.0,0.000183,2]
[425844497,1781980232000,-3945.38608451,0.00013178,2]
[425844495,1781980232000,-284.05333906,0.00013046,2]
[425844493,1781980232000,-5000.0,0.00012916,2]
[425844491,1781980232000,-274.9,0.0001148,7]
[425844537,1781980238000,-1054.61391549,0.00013178,2]
[425844539,1781980238000,-417.15472785,0.00015948,2]
[425844540,1781980238000,-18.79811017,0.00015948,2]
[425844538,1781980238000,-199.1538993,0.00014741,2]
[425844557,1781980246000,-2956.7170963,0.00016068,2]
[425844556,1781980246000,-1161.48618892,0.00016068,2]
[425844555,1781980246000,-41.257,0.00016068,2]
[425844553,1781980246000,-160.0,0.00015948,2]
[425844554,1781980246000,-160.0,0.00015948,2]
[425844582,1781981432000,-263.526,0.00014464,2]
[425844584,1781981432000,-363.64963112,0.00014785,2]
[425844585,1781981432000,-10761.70352695,0.00014867,2]
[425844583,1781981432000,-1033.14222468,0.00014785,2]
[425844701,1781981438000,-87.58592189,0.00015068,2]
[425844700,1781981438000,-952.74601145,0.00014867,2]
[425844762,1781981441000,-589.16,0.00015999,2]
[425844735,1781981441000,-500.0,0.00015899,2]
[425844738,1781981441000,-500.0,0.00015899,2]
[425844737,1781981441000,-500.0,0.00015899,2]
[425844739,1781981441000,-500.0,0.00015899,2]
[425844745,1781981441000,-500.0,0.00015966,2]
[425844743,1781981441000,-500.0,0.00015966,2]
[425844741,1781981441000,-108616.12662084,0.000159,2]
[425844740,1781981441000,-390.97493309,0.00015899,2]
[425844744,1781981441000,-589.16,0.00015966,2]
[425844742,1781981441000,-1919.30944051,0.00015903,2]
[425844749,1781981441000,-500.0,0.00015967,2]
[425844756,1781981441000,-503.89748242,0.00015967,2]
[425844754,1781981441000,-589.16,0.00015967,2]
[425844761,1781981441000,-589.16,0.00015999,2]
[425844758,1781981441000,-345.90782304,0.00015967,2]
[425844755,1781981441000,-500.0,0.00015967,2]
[425844760,1781981441000,-500.0,0.00015999,2]
[425844753,1781981441000,-589.16,0.00015967,2]
[425844752,1781981441000,-589.16,0.00015967,2]
[425844757,1781981441000,-500.0,0.00015967,2]
[425844759,1781981441000,-557.59165453,0.00015967,2]
[425844751,1781981441000,-589.16,0.00015967,2]
[425844750,1781981441000,-589.16,0.00015967,2]
[425844746,1781981441000,-500.0,0.00015966,2]
[425844736,1781981441000,-500.0,0.00015899,2]
[425844747,1781981441000,-500.0,0.00015966,2]
[425844711,1781981441000,-104.68769681,0.00015068,2]
[425844716,1781981441000,-411.83615071,0.000157,2]
[425844712,1781981441000,-727.9181459,0.00015425,2]
[425844718,1781981441000,-411.83615071,0.000158,2]
[425844714,1781981441000,-411.83615071,0.000155,2]
[425844713,1781981441000,-229.99,0.00015481,2]
[425844715,1781981441000,-308.77289812,0.000155,2]
[425844719,1781981441000,-308.77289812,0.000158,2]
[425844720,1781981441000,-9165.77521038,0.00015803,2]
[425844721,1781981441000,-419.21825787,0.00015899,2]
[425844722,1781981441000,-232.6057965,0.00015899,2]
[425844724,1781981441000,-500.0,0.00015899,2]
[425844731,1781981441000,-500.0,0.00015899,2]
[425844725,1781981441000,-500.0,0.00015899,2]
[425844728,1781981441000,-393.2007997,0.00015899,2]
[425844726,1781981441000,-500.0,0.00015899,2]
[425844723,1781981441000,-500.0,0.00015899,2]
[425844730,1781981441000,-500.0,0.00015899,2]
[425844727,1781981441000,-500.0,0.00015899,2]
[425844733,1781981441000,-500.0,0.00015899,2]
[425844729,1781981441000,-500.0,0.00015899,2]
[425844734,1781981441000,-500.0,0.00015899,2]
[425844732,1781981441000,-500.0,0.00015899,2]
[425844748,1781981441000,-500.0,0.00015966,2]
[425844717,1781981441000,-308.77289812,0.000157,2]
[425844764,1781981441000,-589.16,0.00015999,2]
[425844775,1781981441000,-1000.0,0.00016067,2]
[425844793,1781981441000,-500.0,0.00016437,2]
[425844801,1781981441000,-151.5,0.00016437,2]
[425844794,1781981441000,-500.0,0.00016437,2]
[425844792,1781981441000,-589.16,0.00016313,2]
[425844796,1781981441000,-500.0,0.00016437,2]
[425844795,1781981441000,-500.0,0.00016437,2]
[425844799,1781981441000,-500.0,0.00016437,2]
[425844797,1781981441000,-500.0,0.00016437,2]
[425844798,1781981441000,-500.0,0.00016437,2]
[425844804,1781981441000,-2872.803226,0.00016437,2]
[425844802,1781981441000,-151.5,0.00016437,2]
[425844805,1781981441000,-589.16,0.00016437,2]
[425844808,1781981441000,-2872.803226,0.00016437,2]
[425844810,1781981441000,-500.0,0.00016438,2]
[425844814,1781981441000,-500.0,0.00016438,2]
[425844809,1781981441000,-151.0,0.00016437,2]
[425844806,1781981441000,-2872.803226,0.00016437,2]
[425844803,1781981441000,-155.18564599,0.00016437,2]
[425844807,1781981441000,-2872.803226,0.00016437,2]
[425844813,1781981441000,-500.0,0.00016438,2]
[425844811,1781981441000,-500.0,0.00016438,2]
[425844815,1781981441000,-500.0,0.00016438,2]
[425844765,1781981441000,-589.16,0.00015999,2]
[425844789,1781981441000,-600.0,0.00016217,2]
[425844791,1781981441000,-500.0,0.00016273,2]
[425844812,1781981441000,-500.0,0.00016438,2]
[425844790,1781981441000,-1000.0,0.00016266,2]
[425844774,1781981441000,-1000.0,0.00016067,2]
[425844800,1781981441000,-597.51468312,0.00016437,2]
[425844763,1781981441000,-589.16,0.00015999,2]
[425844767,1781981441000,-308.77289812,0.00016,2]
[425844766,1781981441000,-411.83615071,0.00016,2]
[425844768,1781981441000,-97698.1142,0.00016,2]
[425844772,1781981441000,-417.15472785,0.00016067,2]
[425844773,1781981441000,-160.0,0.00016067,2]
[425844769,1781981441000,-316.11177293,0.00016003,7]
[425844770,1781981441000,-500.0,0.00016066,2]
[425844776,1781981441000,-1000.0,0.00016067,2]
[425844771,1781981441000,-160.0,0.00016067,2]
[425844779,1781981441000,-151.0,0.00016103,2]
[425844780,1781981441000,-151.0,0.00016103,2]
[425844783,1781981441000,-300.0,0.00016118,2]
[425844777,1781981441000,-1000.0,0.00016067,2]
[425844788,1781981441000,-1919.30944048,0.00016217,2]
[425844787,1781981441000,-308.77289812,0.000162,2]
[425844786,1781981441000,-411.83615071,0.000162,2]
[425844785,1781981441000,-280.47788121,0.00016164,2]
[425844782,1781981441000,-1004.0,0.00016103,2]
[425844781,1781981441000,-151.0,0.00016103,2]
[425844778,1781981441000,-1000.0,0.00016067,2]
[425844784,1781981441000,-151.5,0.00016164,2]
[425844855,1781981442000,-500.0,0.00016712,2]
[425844856,1781981442000,-500.0,0.00016712,2]
[425844873,1781981442000,-500.0,0.00016712,2]
[425844858,1781981442000,-2872.803226,0.00016712,2]
[425844865,1781981442000,-221.878073,0.00016712,2]
[425844854,1781981442000,-500.0,0.00016712,2]
[425844849,1781981442000,-2872.803226,0.00016711,2]
[425844851,1781981442000,-500.0,0.00016711,2]
[425844848,1781981442000,-2872.803226,0.00016711,2]